{"text_format":"1","workbook":"xlsx","n_sheets":3,"sheets":["حسابات_الافراد","نسخة الزبون","قاعدة بيانات"],"not_rendered":{"charts":0,"images":2,"macros":1,"external_links":0,"defined_names":2,"comments":0,"pivot_tables":0},"unopened":[],"bounds":{"document_bytes":16777216,"sheet_cells":100000,"rows_first":2000,"rows_last":500,"rows_between":2000,"halvings":0,"cell_chars":16384,"cell_head_chars":4096},"cells_cut":0,"cells_raw":0,"read":"whole","date_system":"1900"}

{"sheet":"حسابات_الافراد","index":0,"n_rows":61,"n_cols":10,"rows_kept":61,"cut":false,"hidden":false,"merged":[[55,3,55,4],[51,0,51,1],[51,6,51,7],[47,6,47,7],[47,0,47,1],[49,0,49,1],[49,6,49,7],[50,0,50,1],[50,6,50,7],[53,6,53,7],[52,6,52,7],[52,0,52,1],[53,0,53,1],[1,0,1,7],[2,0,2,7],[38,6,38,7],[37,0,38,5],[39,0,39,7],[56,3,56,4],[58,0,58,1],[58,3,58,4],[58,5,58,7],[60,0,60,1],[60,3,60,4],[60,5,60,7]]}
[null,null,null,null,null,null,null,null,null,0.1]
["برنامج سياحي شهر عسل 14 ليلة و 15 يوم",null,null,null,null,null,null,null,null,0.2]
["السيد /",null,null,null,null,null,null,null,null,0.3]
[]
["اليوم","التـــــاريــــــخ","البرنــــــــــــــــــــــــــامج"," الزمن","الفندق","نوع\n الغرفة","سعرالفندق","المواصلات"]
[]
[1,"1900-01-01","استقبال من المطار والتوصيل الى الفندق","10:00:00","ALOFT LANGKAWI 4*","غرفة مطلة ع الحديقة مع إفطار"]
[2,"1900-01-02","جولة مدينة الأضواء ومتحف الشمع وبيت الثلج","11:00:00","BAYVIEW HOTEL GEORGETOWN 4*","غرفة مطلة ع الحديقة مع إفطار"]
[3,"1900-01-03","جولة كوالالمبور (البرجين-الاكواريا-المنارة-قصر الملك-المتحف الوطني-نهر الحياة-ساحة الحرية)","12:00:00","BAYVIEW HOTEL LANGKAWI 4*","غرفة مطلة ع الحديقة مع إفطار"]
[4,"1900-01-04","التوصيل الى محطة الباصات للسفر الى بينانغ شاملة التذاكر والاستقبال في بينانغ والتوصيل الى الفندق","13:00:00","BAYVIEW HOTEL LANGKAWI 4*","غرفة مطلة ع الحديقة مع إفطار"]
[5,"1900-01-05","الجولة البرية في بينانغ تشمل قطار الهضبة-مصنع القهوة والشوكولا-البيت المقلوب-حديقة التوابل الاستوائية-حديقة الفراشات)","14:00:00","BAYVIEW HOTEL LANGKAWI 4*","غرفة مطلة ع الحديقة مع إفطار"]
[6,"1900-01-06","جولة بحرية تشمل رحلة صيد- شاطئ القرود","15:00:00","BAYVIEW HOTEL LANGKAWI 4*","غرفة مطلة ع الحديقة مع إفطار"]
[7,"1900-01-07","التوصيل الى كوالا قدح والسفر بالعبارة شاملة التذاكر والاستقبال في لينكاوي والتوصيل الى الفندق","16:00:00","BAYVIEW HOTEL LANGKAWI 4*","غرفة مطلة ع الحديقة مع إفطار"]
[8,"1900-01-08","جولة برية في لينكاوي تشمل تل فريك-ساحة النسر-مرزعة التماسيح-حديقة الفواكه الاستوائية","17:00:00","ADYA CENANG 3*","غرفة مطلة ع الحديقة مع إفطار"]
[9,"1900-01-09","جولة بحرية تشمل رحلة الى الجزر الأسطورية","18:00:00","ADYA CENANG 3*","غرفة مطلة ع الحديقة مع إفطار"]
[10,"1900-01-10","يوم للاستمتاع بالشاطئ","19:00:00","ADYA CENANG 3*","غرفة مطلة ع الحديقة مع إفطار"]
[11,"1900-01-11","التوصيل الى مطار لينكاوي والاستقبال في مطار كوالالمبور والتوصيل الى الفندق","20:00:00","ADYA CENANG 3*","غرفة مطلة ع الحديقة مع إفطار"]
[12]
[13]
[14]
[15]
[16]
[17]
[18]
[19]
[20]
[21]
[22]
[23]
[24]
[25]
[26]
[27]
[28]
[29]
[30]
[]
["الإجمـــــــــــــــــــــــــــــــــــــــــــــــالي",null,null,null,null,null,{"$f":"SUM(G7:G36)","v":0},{"$f":"SUM(H7:H36)","v":0}]
[null,null,null,null,null,null,{"$f":"G38+H38","v":0}]
[]
[]
[]
[]
[]
[]
[]
[]
["التاريخ",null,"الرحلات الداخلية","السعر","الانطلاق","الوصول","Air Asia"]
[]
[]
[]
[]
[]
[]
[]
[null,null,"الإجمالي",{"$f":"SUM(D50:D54)","v":0}]
[null,null,"نسبة الربح",0.3]
[]
["إجمالي التكلفة",null,"سعر البيع بالرينغت","سعر البيع بالدولار",null,"قيمة الربح بالرينغت"]
[]
[{"$f":"G39+D56","v":0},null,{"$f":"A61*D57+A61","v":0},{"$f":"C61/4","v":0},null,{"$f":"C61-A61","v":0}]

{"sheet":"نسخة الزبون","index":1,"n_rows":101,"n_cols":6,"rows_kept":101,"cut":false,"hidden":false,"merged":[[82,1,82,5],[100,0,100,5],[52,0,52,1],[52,2,52,3],[51,0,51,1],[51,2,51,3],[48,0,48,1],[48,2,48,3],[50,0,50,1],[1,0,1,5],[2,0,2,5],[46,0,46,1],[46,2,46,3],[34,0,35,5],[50,2,50,3],[49,0,49,1],[49,2,49,3]]}
["حسابات_الافراد"]
[{"$f":"حسابات_الافراد!A2","v":"برنامج سياحي شهر عسل 14 ليلة و 15 يوم"}]
[{"$f":"حسابات_الافراد!A3","v":"السيد /"}]
[]
["اليوم",{"$f":"حسابات_الافراد!B5","v":"التـــــاريــــــخ"},{"$f":"حسابات_الافراد!C5","v":"البرنــــــــــــــــــــــــــامج"},{"$f":"حسابات_الافراد!D5","v":" الزمن"},{"$f":"حسابات_الافراد!E5","v":"الفندق"},{"$f":"حسابات_الافراد!F5","v":"نوع\n الغرفة"}]
[]
[1,{"$f":"IFERROR(IF(حسابات_الافراد!B7<>\"\",INDEX(حسابات_الافراد!$B$7:$B$205,MATCH(0,COUNTIF($B$6:B6,حسابات_الافراد!$B$7:$B$205),0)),\"\"),\"\")","v":"1900-01-01"},{"$f":"IFERROR(VLOOKUP($B7,INDIRECT($A$1&\"!$B$7:$f$100\"),2,0),\"\")","v":"استقبال من المطار والتوصيل الى الفندق"},{"$f":"IFERROR(VLOOKUP($B7,INDIRECT($A$1&\"!$B$7:$f$100\"),3,0),\"\")","v":"10:00:00"},{"$f":"IFERROR(VLOOKUP($B7,INDIRECT($A$1&\"!$B$7:$f$100\"),4,0),\"\")","v":"ALOFT LANGKAWI 4*"},{"$f":"IFERROR(VLOOKUP($B7,INDIRECT($A$1&\"!$B$7:$f$100\"),5,0),\"\")","v":"غرفة مطلة ع الحديقة مع إفطار"}]
[2,{"$f":"IFERROR(IF(حسابات_الافراد!B8<>\"\",INDEX(حسابات_الافراد!$B$7:$B$205,MATCH(0,COUNTIF($B$6:B7,حسابات_الافراد!$B$7:$B$205),0)),\"\"),\"\")","v":"1900-01-02"},{"$f":"IFERROR(VLOOKUP($B8,INDIRECT($A$1&\"!$B$7:$f$100\"),2,0),\"\")","v":"جولة مدينة الأضواء ومتحف الشمع وبيت الثلج"},{"$f":"IFERROR(VLOOKUP($B8,INDIRECT($A$1&\"!$B$7:$f$100\"),3,0),\"\")","v":"11:00:00"},{"$f":"IFERROR(VLOOKUP($B8,INDIRECT($A$1&\"!$B$7:$f$100\"),4,0),\"\")","v":"BAYVIEW HOTEL GEORGETOWN 4*"},{"$f":"IFERROR(VLOOKUP($B8,INDIRECT($A$1&\"!$B$7:$f$100\"),5,0),\"\")","v":"غرفة مطلة ع الحديقة مع إفطار"}]
[3,{"$f":"IFERROR(IF(حسابات_الافراد!B9<>\"\",INDEX(حسابات_الافراد!$B$7:$B$205,MATCH(0,COUNTIF($B$6:B8,حسابات_الافراد!$B$7:$B$205),0)),\"\"),\"\")","v":"1900-01-03"},{"$f":"IFERROR(VLOOKUP($B9,INDIRECT($A$1&\"!$B$7:$f$100\"),2,0),\"\")","v":"جولة كوالالمبور (البرجين-الاكواريا-المنارة-قصر الملك-المتحف الوطني-نهر الحياة-ساحة الحرية)"},"12:00:00","BAYVIEW HOTEL LANGKAWI 4*","غرفة مطلة ع الحديقة مع إفطار"]
[4,{"$f":"IFERROR(IF(حسابات_الافراد!B10<>\"\",INDEX(حسابات_الافراد!$B$7:$B$205,MATCH(0,COUNTIF($B$6:B9,حسابات_الافراد!$B$7:$B$205),0)),\"\"),\"\")","v":"1900-01-04"},{"$f":"IFERROR(VLOOKUP($B10,INDIRECT($A$1&\"!$B$7:$f$100\"),2,0),\"\")","v":"التوصيل الى محطة الباصات للسفر الى بينانغ شاملة التذاكر والاستقبال في بينانغ والتوصيل الى الفندق"},"13:00:00","BAYVIEW HOTEL LANGKAWI 4*","غرفة مطلة ع الحديقة مع إفطار"]
[5,{"$f":"IFERROR(IF(حسابات_الافراد!B11<>\"\",INDEX(حسابات_الافراد!$B$7:$B$205,MATCH(0,COUNTIF($B$6:B10,حسابات_الافراد!$B$7:$B$205),0)),\"\"),\"\")","v":"1900-01-05"},"الجولة البرية في بينانغ تشمل قطار الهضبة-مصنع القهوة والشوكولا-البيت المقلوب-حديقة التوابل الاستوائية-حديقة الفراشات)","14:00:00","BAYVIEW HOTEL LANGKAWI 4*","غرفة مطلة ع الحديقة مع إفطار"]
[6,{"$f":"IFERROR(IF(حسابات_الافراد!B12<>\"\",INDEX(حسابات_الافراد!$B$7:$B$205,MATCH(0,COUNTIF($B$6:B11,حسابات_الافراد!$B$7:$B$205),0)),\"\"),\"\")","v":"1900-01-06"},"جولة بحرية تشمل رحلة صيد- شاطئ القرود","15:00:00","BAYVIEW HOTEL LANGKAWI 4*","غرفة مطلة ع الحديقة مع إفطار"]
[7,{"$f":"IFERROR(IF(حسابات_الافراد!B13<>\"\",INDEX(حسابات_الافراد!$B$7:$B$205,MATCH(0,COUNTIF($B$6:B12,حسابات_الافراد!$B$7:$B$205),0)),\"\"),\"\")","v":"1900-01-07"},"التوصيل الى كوالا قدح والسفر بالعبارة شاملة التذاكر والاستقبال في لينكاوي والتوصيل الى الفندق","16:00:00","BAYVIEW HOTEL LANGKAWI 4*","غرفة مطلة ع الحديقة مع إفطار"]
[8,{"$f":"IFERROR(IF(حسابات_الافراد!B14<>\"\",INDEX(حسابات_الافراد!$B$7:$B$205,MATCH(0,COUNTIF($B$6:B13,حسابات_الافراد!$B$7:$B$205),0)),\"\"),\"\")","v":"1900-01-08"},"جولة برية في لينكاوي تشمل تل فريك-ساحة النسر-مرزعة التماسيح-حديقة الفواكه الاستوائية","17:00:00","ADYA CENANG 3*","غرفة مطلة ع الحديقة مع إفطار"]
[9,{"$f":"IFERROR(IF(حسابات_الافراد!B15<>\"\",INDEX(حسابات_الافراد!$B$7:$B$205,MATCH(0,COUNTIF($B$6:B14,حسابات_الافراد!$B$7:$B$205),0)),\"\"),\"\")","v":"1900-01-09"},"جولة بحرية تشمل رحلة الى الجزر الأسطورية","18:00:00","ADYA CENANG 3*","غرفة مطلة ع الحديقة مع إفطار"]
[10,{"$f":"IFERROR(IF(حسابات_الافراد!B16<>\"\",INDEX(حسابات_الافراد!$B$7:$B$205,MATCH(0,COUNTIF($B$6:B15,حسابات_الافراد!$B$7:$B$205),0)),\"\"),\"\")","v":"1900-01-10"},"يوم للاستمتاع بالشاطئ","19:00:00","ADYA CENANG 3*","غرفة مطلة ع الحديقة مع إفطار"]
[11,{"$f":"IFERROR(IF(حسابات_الافراد!B17<>\"\",INDEX(حسابات_الافراد!$B$7:$B$205,MATCH(0,COUNTIF($B$6:B16,حسابات_الافراد!$B$7:$B$205),0)),\"\"),\"\")","v":"1900-01-11"},"التوصيل الى مطار لينكاوي والاستقبال في مطار كوالالمبور والتوصيل الى الفندق","20:00:00","ADYA CENANG 3*","غرفة مطلة ع الحديقة مع إفطار"]
[12,{"$f":"IFERROR(IF(حسابات_الافراد!B18<>\"\",INDEX(حسابات_الافراد!$B$7:$B$205,MATCH(0,COUNTIF($B$6:B17,حسابات_الافراد!$B$7:$B$205),0)),\"\"),\"\")","v":""},"","","",""]
[13,{"$f":"IFERROR(IF(حسابات_الافراد!B19<>\"\",INDEX(حسابات_الافراد!$B$7:$B$205,MATCH(0,COUNTIF($B$6:B18,حسابات_الافراد!$B$7:$B$205),0)),\"\"),\"\")","v":""},"","","",""]
[14,{"$f":"IFERROR(IF(حسابات_الافراد!B20<>\"\",INDEX(حسابات_الافراد!$B$7:$B$205,MATCH(0,COUNTIF($B$6:B19,حسابات_الافراد!$B$7:$B$205),0)),\"\"),\"\")","v":""},"","","",""]
[15,{"$f":"IFERROR(IF(حسابات_الافراد!B21<>\"\",INDEX(حسابات_الافراد!$B$7:$B$205,MATCH(0,COUNTIF($B$6:B20,حسابات_الافراد!$B$7:$B$205),0)),\"\"),\"\")","v":""},"","","",""]
[16,{"$f":"IFERROR(IF(حسابات_الافراد!B22<>\"\",INDEX(حسابات_الافراد!$B$7:$B$205,MATCH(0,COUNTIF($B$6:B21,حسابات_الافراد!$B$7:$B$205),0)),\"\"),\"\")","v":""},"","","",""]
[17,{"$f":"IFERROR(IF(حسابات_الافراد!B23<>\"\",INDEX(حسابات_الافراد!$B$7:$B$205,MATCH(0,COUNTIF($B$6:B22,حسابات_الافراد!$B$7:$B$205),0)),\"\"),\"\")","v":""},"","","",""]
[18,{"$f":"IFERROR(IF(حسابات_الافراد!B24<>\"\",INDEX(حسابات_الافراد!$B$7:$B$205,MATCH(0,COUNTIF($B$6:B23,حسابات_الافراد!$B$7:$B$205),0)),\"\"),\"\")","v":""},"","","",""]
[19,{"$f":"IFERROR(IF(حسابات_الافراد!B25<>\"\",INDEX(حسابات_الافراد!$B$7:$B$205,MATCH(0,COUNTIF($B$6:B24,حسابات_الافراد!$B$7:$B$205),0)),\"\"),\"\")","v":""},"","","",""]
[20,{"$f":"IFERROR(IF(حسابات_الافراد!B26<>\"\",INDEX(حسابات_الافراد!$B$7:$B$205,MATCH(0,COUNTIF($B$6:B25,حسابات_الافراد!$B$7:$B$205),0)),\"\"),\"\")","v":""},"","","",""]
[21,{"$f":"IFERROR(IF(حسابات_الافراد!B27<>\"\",INDEX(حسابات_الافراد!$B$7:$B$205,MATCH(0,COUNTIF($B$6:B26,حسابات_الافراد!$B$7:$B$205),0)),\"\"),\"\")","v":""},"","","",""]
[22,{"$f":"IFERROR(IF(حسابات_الافراد!B28<>\"\",INDEX(حسابات_الافراد!$B$7:$B$205,MATCH(0,COUNTIF($B$6:B27,حسابات_الافراد!$B$7:$B$205),0)),\"\"),\"\")","v":""},"","","",""]
[23,{"$f":"IFERROR(IF(حسابات_الافراد!B29<>\"\",INDEX(حسابات_الافراد!$B$7:$B$205,MATCH(0,COUNTIF($B$6:B28,حسابات_الافراد!$B$7:$B$205),0)),\"\"),\"\")","v":""},"","","",""]
[24,{"$f":"IFERROR(IF(حسابات_الافراد!B30<>\"\",INDEX(حسابات_الافراد!$B$7:$B$205,MATCH(0,COUNTIF($B$6:B29,حسابات_الافراد!$B$7:$B$205),0)),\"\"),\"\")","v":""},"","","",""]
[25,{"$f":"IFERROR(IF(حسابات_الافراد!B31<>\"\",INDEX(حسابات_الافراد!$B$7:$B$205,MATCH(0,COUNTIF($B$6:B30,حسابات_الافراد!$B$7:$B$205),0)),\"\"),\"\")","v":""},"","","",""]
[26,{"$f":"IFERROR(IF(حسابات_الافراد!B32<>\"\",INDEX(حسابات_الافراد!$B$7:$B$205,MATCH(0,COUNTIF($B$6:B31,حسابات_الافراد!$B$7:$B$205),0)),\"\"),\"\")","v":""},"","","",""]
[27,{"$f":"IFERROR(IF(حسابات_الافراد!B33<>\"\",INDEX(حسابات_الافراد!$B$7:$B$205,MATCH(0,COUNTIF($B$6:B32,حسابات_الافراد!$B$7:$B$205),0)),\"\"),\"\")","v":""},"","","",""]
[28,{"$f":"IFERROR(IF(حسابات_الافراد!B34<>\"\",INDEX(حسابات_الافراد!$B$7:$B$205,MATCH(0,COUNTIF($B$6:B33,حسابات_الافراد!$B$7:$B$205),0)),\"\"),\"\")","v":""},"","","",""]
["الدخول الى الفندق الساعة 2 ظهرا والخروج من الفندق 12 ظهراً كحد اقصى"]
[]
[]
[]
[]
[]
[]
[]
[]
[]
[]
[]
["التاريخ",null,"الرحلات الداخلية",null,"الانطلاق","الوصول"]
[]
[{"$f":"حسابات_الافراد!A50","v":"00:00:00"},null,{"$f":"حسابات_الافراد!C50","v":0},null,{"$f":"حسابات_الافراد!E50","v":"00:00:00"},{"$f":"حسابات_الافراد!F50","v":"00:00:00"}]
[{"$f":"حسابات_الافراد!A51","v":"00:00:00"},null,{"$f":"حسابات_الافراد!C51","v":0},null,{"$f":"حسابات_الافراد!E51","v":"00:00:00"},{"$f":"حسابات_الافراد!F51","v":"00:00:00"}]
[{"$f":"حسابات_الافراد!A52","v":"00:00:00"},null,{"$f":"حسابات_الافراد!C52","v":0},null,{"$f":"حسابات_الافراد!E52","v":"00:00:00"},{"$f":"حسابات_الافراد!F52","v":"00:00:00"}]
[{"$f":"حسابات_الافراد!A53","v":"00:00:00"},null,{"$f":"حسابات_الافراد!C53","v":0},null,{"$f":"حسابات_الافراد!E53","v":"00:00:00"},{"$f":"حسابات_الافراد!F53","v":"00:00:00"}]
[{"$f":"حسابات_الافراد!A54","v":"00:00:00"},null,{"$f":"حسابات_الافراد!C54","v":0},null,{"$f":"حسابات_الافراد!E54","v":"00:00:00"},{"$f":"حسابات_الافراد!F54","v":"00:00:00"}]
[]
[]
[null,"العرض السياحي شامل مايلي:"]
[]
[1,"الاستقبال و التوديع في المطارات"]
[2,"شريحة اتصال ماليزية "]
[3,"السكن في كوالامبور وبينانج ولنكاوي"]
[4,"توفير سيارة خاصة للجولات السياحية المحددة في البرنامج"]
[5,"تذاكر الطيران الداخلي والعبارة والباص"]
[]
[]
[]
[]
[null,"العرض لايشمل مايلي :"]
[]
[1,"الوجبات الغير مذكورة او أي فواتير أخرى خلال فترة الإقامة بالفنادق"]
[2,"الجولات الاختيارية غير المذكورة في البرنامج"]
[3,"تذاكر الألعاب ودخول الحدائق والأماكن السياحية"]
[4,"أي مصروفات أخرى غير التي ذكرت بالبرنامج"]
[]
[]
[]
[]
[]
[]
[]
[]
[null,"متطلبات السفر الى ماليزيا 2023"]
[]
[null,"الدول العربية لاتحتاج لتأشيرة ويسمح لمواطني الدول العربية بالدخول والإقامة للسياحة\n في ماليزيا لمدة 3 أشهر "]
[]
[]
[]
[null,"المتطلبات:"]
[]
[1,"جواز سفر ساري لاكثر من 6 اشهر"]
[2,"تذكرة عودة قبل 3 اشهر من الوصول"]
[3,"حجز فندقي "]
[4,"ان تملك مبلغ مالي يكفي مصروف فترة اقامتك بماليزيا"]
[5,"شهادة تلقي لقاح كوفيد "]
[6,"مطلوب شهادة تطعيم الحمى الصفراء للقادمين من افريقيا وامريكا الجنوبية "]
[]
[]
[]
[]
[]
[]
["امنياتنا لكم بقضاء أوقات جميلة وممتعة في بلاد السحر ماليزيا"]

{"sheet":"قاعدة بيانات","index":2,"n_rows":52,"n_cols":4,"rows_kept":52,"cut":false,"hidden":false,"merged":[]}
["الفندق","نوع الغرفة","الرحلات الداخلية","عدد الغرف"]
["AB MOTEL 2*","غرفة لشخصين مع إفطار","KUL-PEN",1]
["ADYA CENANG 3*","غرفة لشخصين بدون إفطار","PEN-LGK",2]
["ADYA KUAH 4*","غرفة عائلية مع إفطار","LGK-KUL",3]
["ALIA EXPRESS","غرفة عائلية بدون إفطار","KUL-LGK",4]
["ALOFT LANGKAWI 4*","غرفة مطلة ع الحديقة مع إفطار","PEN-KUL",5]
["BAYVIEW HOTEL GEORGETOWN 4*","غرفة مطلة ع الحديقة بدون إفطار","LGK-PEN",6]
["BAYVIEW HOTEL LANGKAWI 4*","غرفة مطلة ع البحر مع إفطار",null,7]
["Bayview Hotel Melaka 4*","غرفة مطلة ع البحر بدون إفطار",null,8]
["BAYVIEW RESORT BATU FERRINGHI 4*",null,null,9]
["Bella Vista Waterfront Langkawi 3*",null,null,10]
["BERJAYA LANGKAWI RESORT 5*"]
["BERJAYA TIMES SQUARE 5*"]
["BEST STAR RESORT 3*"]
["Cameron Highlands Resort 5*"]
["Casa del Rio Melaka 5*"]
["Century Pines Resort Cameron Highlands 4*"]
["Copthorne Hotel Cameron Highlands 4*"]
["DASH RESORT LANGKAWI 4*"]
["DAYANG BAY RESORT 4*"]
["DORSETT 4*"]
["DOUBLETREE RESORT BY HILTON PENANG 5*"]
["First World Hotel 3*"]
["FLAMINGO HOTEL 4*"]
["Genting Grand Hotel"]
["Genting SkyWorlds Hotel 3*"]
["GOLDEN SANDS BY SHANGRI-LA 4*"]
["Grand Ion Delemen Hotel 5*"]
["Hard Rock Hotel Penang 5*"]
["Heritage Hotel 3*"]
["HOLIDAY INN EXPRESS KUALA LUMPUR 3*"]
["Hotel De'la Ferns Cameron Highlands 3*"]
["Hotel Sentral Seaview 3*"]
["ibis Melaka 4*"]
["Langgura Baron Resort 2*"]
["LANGKAPURI RESORT 2*"]
["MALIBEST RESORT 2*"]
["MERCURE KUALA LUMPUR 4*"]
["MERCURE PENANG 4*"]
["METRO 3*"]
["PARKROYAL PENANG RESORT 4*"]
["Pelangi Beach Resort & Spa, Langkawi 5*"]
["PULLMAN 5*"]
["RAINBOW PARADISE 4*"]
["Resorts World Awana 4*"]
["SHANGRI-LA RASA SAYANG RESORT & SPA PENANG 5*"]
["Strawberry Park Resort 4*"]
["SUNWAY CLIO 4*"]
["SUNWAY PYRAMID 4*"]
["SUNWAY RESORT 5*"]
["Swiss-Garden Hotel & Residences Genting Highlands 4*"]
["The Westin Langkawi Resort & Spa 5*"]